[Event "*** Titled Tuesday 3|2 Blitz (Early)"]
[Site "Chess.com"]
[Date "2017.01.03"]
[Round "2"]
[White "PelinGorki"]
[Black "gumersindo"]
[Result "1/2-1/2"]
[WhiteElo "2361"]
[BlackElo "2346"]
[TimeControl "180+2"]
[EndTime "11:22:08 PST"]
[Termination "Game drawn by agreement"]

1. e4 {[%clk 0:03:02]} 1... e5 {[%clk 0:03:00.4]} 2. Nc3 {[%clk 0:03:03]} 2...
Nf6 {[%clk 0:03:00.2]} 3. Bc4 {[%clk 0:03:04.4]} 3... Bc5 {[%clk 0:02:59]} 4. d3
{[%clk 0:03:05.1]} 4... Nc6 {[%clk 0:02:59.5]} 5. f4 {[%clk 0:03:06.3]} 5... d6
{[%clk 0:02:59.2]} 6. Nf3 {[%clk 0:03:07.9]} 6... Bg4 {[%clk 0:02:57.8]} 7. Na4
{[%clk 0:03:09.5]} 7... Bb4+ {[%clk 0:02:57]} 8. c3 {[%clk 0:03:10]} 8... Ba5
{[%clk 0:02:58.1]} 9. b4 {[%clk 0:03:11.6]} 9... Bb6 {[%clk 0:02:58.5]} 10. Nxb6
{[%clk 0:03:13.2]} 10... axb6 {[%clk 0:02:59.2]} 11. O-O {[%clk 0:03:14.5]}
11... O-O {[%clk 0:02:55.8]} 12. h3 {[%clk 0:03:15.3]} 12... Be6 {[%clk
0:02:53.3]} 13. Qe2 {[%clk 0:03:01.2]} 13... Bxc4 {[%clk 0:02:52.8]} 14. dxc4
{[%clk 0:03:03.1]} 14... exf4 {[%clk 0:02:48.6]} 15. Bxf4 {[%clk 0:03:05]} 15...
h6 {[%clk 0:02:44]} 16. Qd3 {[%clk 0:03:00.9]} 16... Re8 {[%clk 0:02:44.2]} 17.
Nd2 {[%clk 0:02:47.2]} 17... Ne5 {[%clk 0:02:43.8]} 18. Qc2 {[%clk 0:02:47.1]}
18... Ng6 {[%clk 0:02:40.5]} 19. Be3 {[%clk 0:02:40.1]} 19... Qe7 {[%clk
0:02:39.8]} 20. Rae1 {[%clk 0:02:34.7]} 20... Qe6 {[%clk 0:02:35]} 21. Bd4
{[%clk 0:02:33.6]} 21... Nd7 {[%clk 0:02:34.5]} 22. Re2 {[%clk 0:02:24.6]} 22...
b5 {[%clk 0:02:34.7]} 23. cxb5 {[%clk 0:02:20]} 23... Rxa2 {[%clk 0:02:34.4]}
24. Qd3 {[%clk 0:02:20.5]} 24... c5 {[%clk 0:02:27.4]} 25. bxc6 {[%clk
0:02:18.1]} 25... bxc6 {[%clk 0:02:27.8]} 26. Ref2 {[%clk 0:02:04.5]} 26... Nde5
{[%clk 0:02:25.9]} 27. Qg3 {[%clk 0:02:05]} 27... Kh7 {[%clk 0:02:16.8]} 28. Be3
{[%clk 0:01:46.4]} 28... f6 {[%clk 0:02:12.5]} 29. h4 {[%clk 0:01:44.7]} 29...
Ng4 {[%clk 0:02:07.9]} 30. h5 {[%clk 0:01:45.9]} 30... N6e5 {[%clk 0:02:07.5]}
31. Rf5 {[%clk 0:01:40.6]} 31... Nxe3 {[%clk 0:01:50.6]} 32. Qxe3 {[%clk
0:01:42.5]} 32... Nf7 {[%clk 0:01:45.9]} 33. Qd3 {[%clk 0:01:26.1]} 33... Kg8
{[%clk 0:01:39.9]} 34. R1f2 {[%clk 0:01:21.6]} 34... Ng5 {[%clk 0:01:39.4]} 35.
R5f4 {[%clk 0:01:09.2]} 35... d5 {[%clk 0:01:11.5]} 36. exd5 {[%clk 0:01:07.5]}
36... cxd5 {[%clk 0:01:11.7]} 37. Nf3 {[%clk 0:00:48.9]} 37... Rxf2 {[%clk
0:01:09.9]} 38. Kxf2 {[%clk 0:00:46.2]} 38... Nxf3 {[%clk 0:01:10.6]} 39. Kxf3
{[%clk 0:00:47.5]} 39... Qe5 {[%clk 0:01:04.9]} 40. g4 {[%clk 0:00:44.9]} 40...
Rc8 {[%clk 0:01:00.2]} 41. Rd4 {[%clk 0:00:38.7]} 41... Qe1 {[%clk 0:00:55.6]}
42. c4 {[%clk 0:00:40]} 42... Qh1+ {[%clk 0:00:51.7]} 43. Kg3 {[%clk 0:00:40.6]}
43... Qg1+ {[%clk 0:00:49.2]} 44. Kf3 {[%clk 0:00:41.4]} 44... Qh1+ {[%clk
0:00:49.6]} 45. Kg3 {[%clk 0:00:42.9]} 1/2-1/2

[Event "*** Titled Tuesday 3|2 Blitz (Early)"]
[Site "Chess.com"]
[Date "2017.01.03"]
[Round "2"]
[White "Gordima"]
[Black "Maitreia"]
[Result "1-0"]
[WhiteElo "2484"]
[BlackElo "2471"]
[TimeControl "180+2"]
[EndTime "11:22:28 PST"]
[Termination "Gordima won by resignation"]

1. c4 {[%clk 0:02:59.9]} 1... Nf6 {[%clk 0:02:59.2]} 2. Nf3 {[%clk 0:02:59.5]}
2... g6 {[%clk 0:03:00.7]} 3. b3 {[%clk 0:02:57.7]} 3... Bg7 {[%clk 0:03:01.7]}
4. Bb2 {[%clk 0:02:59.3]} 4... O-O {[%clk 0:03:03.6]} 5. g3 {[%clk 0:03:00.8]}
5... c5 {[%clk 0:03:04]} 6. Bg2 {[%clk 0:03:01.6]} 6... Nc6 {[%clk 0:03:05.7]}
7. O-O {[%clk 0:03:02.3]} 7... d6 {[%clk 0:03:02.2]} 8. d4 {[%clk 0:03:01.7]}
8... cxd4 {[%clk 0:03:02.8]} 9. Nxd4 {[%clk 0:03:02.5]} 9... Bd7 {[%clk
0:03:04.1]} 10. Nc3 {[%clk 0:03:01.5]} 10... Nxd4 {[%clk 0:03:04.8]} 11. Qxd4
{[%clk 0:03:02.4]} 11... Bc6 {[%clk 0:03:06.7]} 12. Qd2 {[%clk 0:02:53.1]} 12...
Bxg2 {[%clk 0:03:05.4]} 13. Kxg2 {[%clk 0:02:53.8]} 13... Qa5 {[%clk 0:03:06.5]}
14. Rfd1 {[%clk 0:02:52.1]} 14... Rfc8 {[%clk 0:03:04.4]} 15. f3 {[%clk
0:02:38.4]} 15... a6 {[%clk 0:03:04.2]} 16. Na4 {[%clk 0:02:04.6]} 16... Qxd2
{[%clk 0:03:03.8]} 17. Rxd2 {[%clk 0:02:06]} 17... Nd7 {[%clk 0:03:02.5]} 18.
Bxg7 {[%clk 0:02:01.3]} 18... Kxg7 {[%clk 0:03:04.4]} 19. Rd5 {[%clk 0:01:55.2]}
19... b5 {[%clk 0:02:57.5]} 20. cxb5 {[%clk 0:01:32]} 20... Nf6 {[%clk
0:02:58.1]} 21. Rd2 {[%clk 0:01:29.2]} 21... axb5 {[%clk 0:02:58.9]} 22. Nb6
{[%clk 0:01:29.8]} 22... Rab8 {[%clk 0:02:51.7]} 23. Nxc8 {[%clk 0:01:30.9]}
23... Rxc8 {[%clk 0:02:53.6]} 24. a4 {[%clk 0:01:32.5]} 24... bxa4 {[%clk
0:02:53.5]} 25. bxa4 {[%clk 0:01:33.6]} 25... Nd7 {[%clk 0:02:52.7]} 26. a5
{[%clk 0:01:34.7]} 26... Nc5 {[%clk 0:02:49.9]} 27. Rb2 {[%clk 0:01:34.2]} 27...
Ra8 {[%clk 0:02:48.6]} 28. Rb6 {[%clk 0:01:34.7]} 28... Na6 {[%clk 0:02:39.1]}
29. e4 {[%clk 0:01:33]} 29... h5 {[%clk 0:02:39.1]} 30. Kf2 {[%clk 0:01:32.9]}
30... Kf6 {[%clk 0:02:40.2]} 31. Ke3 {[%clk 0:01:33.7]} 31... Ke6 {[%clk
0:02:41.6]} 32. Kd4 {[%clk 0:01:33.9]} 32... Ra7 {[%clk 0:02:35]} 33. h4 {[%clk
0:01:25.2]} 33... Ra8 {[%clk 0:02:35.4]} 34. g4 {[%clk 0:01:24.7]} 34... Ra7
{[%clk 0:02:27.9]} 35. gxh5 {[%clk 0:01:25.7]} 35... gxh5 {[%clk 0:02:29.8]} 36.
Kc4 {[%clk 0:01:22.7]} 36... Kd7 {[%clk 0:02:20.7]} 37. Rb5 {[%clk 0:01:17.9]}
37... Nc5 {[%clk 0:02:17.6]} 38. Rxc5 {[%clk 0:01:01.8]} 38... dxc5 {[%clk
0:02:18.2]} 39. Kxc5 {[%clk 0:01:02.4]} 39... Kc7 {[%clk 0:02:18.9]} 40. a6
{[%clk 0:01:03.1]} 40... Kb8 {[%clk 0:02:19.1]} 41. Kb6 {[%clk 0:01:00]} 41...
Rd7 {[%clk 0:02:18.4]} 42. Rc1 {[%clk 0:01:01]} 42... Rd6+ {[%clk 0:01:49]} 43.
Rc6 {[%clk 0:01:01.4]} 43... Rd7 {[%clk 0:01:50.5]} 44. Rh6 {[%clk 0:00:57.3]}
44... Rd8 {[%clk 0:01:51.8]} 45. Rc6 {[%clk 0:00:51.8]} 45... Rd7 {[%clk
0:01:49.6]} 46. Rh6 {[%clk 0:00:43.1]} 46... Rd8 {[%clk 0:01:50.8]} 47. e5
{[%clk 0:00:44.6]} 47... Rg8 {[%clk 0:01:45.5]} 48. f4 {[%clk 0:00:41.3]} 48...
Ka8 {[%clk 0:01:24.8]} 49. f5 {[%clk 0:00:33.8]} 49... Rb8+ {[%clk 0:01:24.4]}
50. Kc7 {[%clk 0:00:35.3]} 50... Rb5 {[%clk 0:01:24.4]} 51. e6 {[%clk
0:00:22.7]} 51... Rxf5 {[%clk 0:01:26.3]} 52. Kb6 {[%clk 0:00:23.5]} 1-0

[Event "*** Titled Tuesday 3|2 Blitz (Early)"]
[Site "Chess.com"]
[Date "2017.01.03"]
[Round "2"]
[White "GMMelik"]
[Black "dretch"]
[Result "0-1"]
[WhiteElo "2417"]
[BlackElo "2583"]
[TimeControl "180+2"]
[EndTime "11:22:32 PST"]
[Termination "dretch won by resignation"]

1. e4 {[%clk 0:03:01.9]} 1... e6 {[%clk 0:03:01.2]} 2. d4 {[%clk 0:03:01.9]}
2... d5 {[%clk 0:03:02.6]} 3. Nc3 {[%clk 0:03:02.3]} 3... Nf6 {[%clk 0:03:02.8]}
4. Bg5 {[%clk 0:03:02.2]} 4... dxe4 {[%clk 0:03:03.5]} 5. Nxe4 {[%clk
0:03:02.7]} 5... Be7 {[%clk 0:03:04.8]} 6. Bxf6 {[%clk 0:03:03.6]} 6... Bxf6
{[%clk 0:03:06.7]} 7. Nf3 {[%clk 0:03:04.2]} 7... Nd7 {[%clk 0:03:08.4]} 8. Qd2
{[%clk 0:03:04]} 8... O-O {[%clk 0:03:08.4]} 9. O-O-O {[%clk 0:03:03.9]} 9...
Be7 {[%clk 0:03:09.7]} 10. Qf4 {[%clk 0:02:59.8]} 10... c5 {[%clk 0:03:05.9]}
11. Bb5 {[%clk 0:02:32.5]} 11... Qa5 {[%clk 0:02:59.3]} 12. Bxd7 {[%clk
0:02:31.6]} 12... Bxd7 {[%clk 0:03:00.3]} 13. Ne5 {[%clk 0:02:18.9]} 13... Bc6
{[%clk 0:02:22.5]} 14. Nxc6 {[%clk 0:02:14.5]} 14... bxc6 {[%clk 0:02:22.9]} 15.
Nc3 {[%clk 0:01:52.2]} 15... Bf6 {[%clk 0:02:17.4]} 16. Ne4 {[%clk 0:01:31.3]}
16... Bxd4 {[%clk 0:01:59.9]} 17. c3 {[%clk 0:01:29.2]} 17... Qxa2 {[%clk
0:02:01]} 18. cxd4 {[%clk 0:01:29.7]} 18... Rab8 {[%clk 0:02:02.1]} 19. Kd2
{[%clk 0:00:59.8]} 19... Rxb2+ {[%clk 0:02:00.4]} 20. Ke1 {[%clk 0:00:58.6]}
20... Re2+ {[%clk 0:01:07.6]} 21. Kf1 {[%clk 0:00:56.8]} 21... Qc4 {[%clk
0:01:08.4]} 22. Kg1 {[%clk 0:00:50]} 22... Qc2 {[%clk 0:01:08.7]} 23. Nf6+
{[%clk 0:00:18.3]} 23... gxf6 {[%clk 0:01:07.9]} 24. Rf1 {[%clk 0:00:19.3]}
24... cxd4 {[%clk 0:00:57.3]} 25. h4 {[%clk 0:00:16.2]} 25... e5 {[%clk
0:00:20.4]} 26. Qxf6 {[%clk 0:00:12.6]} 26... Qg6 {[%clk 0:00:21.4]} 27. Qf3
{[%clk 0:00:12.6]} 27... Qe4 {[%clk 0:00:19.2]} 28. Qf6 {[%clk 0:00:11.5]} 28...
Qg6 {[%clk 0:00:15.8]} 29. Qf3 {[%clk 0:00:11.9]} 29... Re4 {[%clk 0:00:17]} 30.
Rh3 {[%clk 0:00:12.1]} 30... Rg4 {[%clk 0:00:16.1]} 31. h5 {[%clk 0:00:13.3]}
31... Qg5 {[%clk 0:00:16.3]} 32. Qxc6 {[%clk 0:00:12.9]} 32... e4 {[%clk
0:00:16.1]} 33. Kh1 {[%clk 0:00:09.6]} 33... d3 {[%clk 0:00:15.8]} 34. h6 {[%clk
0:00:08.8]} 34... Rd8 {[%clk 0:00:14.9]} 35. Qc3 {[%clk 0:00:04.9]} 35... d2
{[%clk 0:00:15.3]} 36. Rh5 {[%clk 0:00:05.3]} 36... Qxh5+ {[%clk 0:00:15.8]} 0-1

[Event "*** Titled Tuesday 3|2 Blitz (Early)"]
[Site "Chess.com"]
[Date "2017.01.03"]
[Round "2"]
[White "biostatistician"]
[Black "Byniolus"]
[Result "1-0"]
[WhiteElo "2441"]
[BlackElo "2560"]
[TimeControl "180+2"]
[EndTime "11:22:35 PST"]
[Termination "biostatistician won on time"]

1. d4 {[%clk 0:03:02]} 1... d6 {[%clk 0:02:57.1]} 2. Nf3 {[%clk 0:03:03.6]} 2...
Bg4 {[%clk 0:02:55.5]} 3. c4 {[%clk 0:03:05.5]} 3... c6 {[%clk 0:02:55.3]} 4.
Nc3 {[%clk 0:03:05.3]} 4... Nd7 {[%clk 0:02:55.7]} 5. e4 {[%clk 0:03:04.8]} 5...
e5 {[%clk 0:02:56.6]} 6. Be2 {[%clk 0:03:06]} 6... Ngf6 {[%clk 0:02:57.4]} 7.
Be3 {[%clk 0:03:07]} 7... Be7 {[%clk 0:02:58.4]} 8. O-O {[%clk 0:03:07.7]} 8...
O-O {[%clk 0:02:59.5]} 9. d5 {[%clk 0:03:09]} 9... a6 {[%clk 0:02:58.8]} 10. Nd2
{[%clk 0:03:09.1]} 10... Bxe2 {[%clk 0:02:59.6]} 11. Qxe2 {[%clk 0:03:11]} 11...
Qc7 {[%clk 0:03:00.5]} 12. Rfc1 {[%clk 0:03:05.1]} 12... Rfc8 {[%clk 0:03:00.6]}
13. b4 {[%clk 0:02:53.6]} 13... a5 {[%clk 0:02:56.1]} 14. a3 {[%clk 0:02:47.6]}
14... Nb6 {[%clk 0:02:49.4]} 15. c5 {[%clk 0:02:34.2]} 15... Nbd7 {[%clk
0:02:45.8]} 16. cxd6 {[%clk 0:02:21.9]} 16... Qxd6 {[%clk 0:02:47.1]} 17. Nc4
{[%clk 0:02:21.5]} 17... Qb8 {[%clk 0:02:46]} 18. dxc6 {[%clk 0:02:09.4]} 18...
bxc6 {[%clk 0:02:34.9]} 19. Nxa5 {[%clk 0:02:10.3]} 19... c5 {[%clk 0:02:36.4]}
20. Nd5 {[%clk 0:00:50.1]} 20... Bd8 {[%clk 0:02:33.9]} 21. Nxf6+ {[%clk
0:00:36.7]} 21... Bxf6 {[%clk 0:02:32.9]} 22. Qd3 {[%clk 0:00:30.4]} 22... Qc7
{[%clk 0:01:59.1]} 23. Bxc5 {[%clk 0:00:18.3]} 23... Rxa5 {[%clk 0:01:46]} 24.
Be3 {[%clk 0:00:18.9]} 24... Nc5 {[%clk 0:01:38.3]} 25. Bxc5 {[%clk 0:00:19.2]}
25... Raa8 {[%clk 0:01:38.7]} 26. Be3 {[%clk 0:00:18.8]} 26... Qb7 {[%clk
0:01:40.2]} 27. b5 {[%clk 0:00:19.1]} 27... Rd8 {[%clk 0:01:40.2]} 28. Qe2
{[%clk 0:00:19.6]} 28... Qxe4 {[%clk 0:01:41]} 29. a4 {[%clk 0:00:19.7]} 29...
Rxa4 {[%clk 0:01:42]} 30. Rxa4 {[%clk 0:00:19.5]} 30... Qxa4 {[%clk 0:01:43.9]}
31. b6 {[%clk 0:00:21.3]} 31... Qb3 {[%clk 0:01:42.6]} 32. h3 {[%clk 0:00:20.4]}
32... h6 {[%clk 0:01:42.1]} 33. Qc4 {[%clk 0:00:21]} 33... Qb2 {[%clk
0:01:38.6]} 34. Qc7 {[%clk 0:00:19.2]} 34... Rd3 {[%clk 0:01:37.8]} 35. b7
{[%clk 0:00:19.6]} 35... Rb3 {[%clk 0:01:39.1]} 36. Qc8+ {[%clk 0:00:20.5]}
36... Kh7 {[%clk 0:01:39.9]} 37. Qf5+ {[%clk 0:00:21.6]} 37... g6 {[%clk
0:01:40.8]} 38. Qxf6 {[%clk 0:00:23]} 1-0

[Event "*** Titled Tuesday 3|2 Blitz (Early)"]
[Site "Chess.com"]
[Date "2017.01.03"]
[Round "2"]
[White "Rickstereo"]
[Black "SidArun"]
[Result "1-0"]
[WhiteElo "2165"]
[BlackElo "2039"]
[TimeControl "180+2"]
[EndTime "11:22:36 PST"]
[Termination "Rickstereo won by resignation"]

1. c4 {[%clk 0:03:02]} 1... e6 {[%clk 0:03:00.2]} 2. g3 {[%clk 0:02:59.6]} 2...
d5 {[%clk 0:02:59.9]} 3. Bg2 {[%clk 0:02:58]} 3... c6 {[%clk 0:02:59.1]} 4. Nf3
{[%clk 0:02:58.2]} 4... f5 {[%clk 0:02:59.4]} 5. d4 {[%clk 0:02:57.5]} 5... Nf6
{[%clk 0:03:00.2]} 6. O-O {[%clk 0:02:58.4]} 6... Be7 {[%clk 0:02:58.1]} 7. Qc2
{[%clk 0:03:00]} 7... O-O {[%clk 0:02:57.9]} 8. Nc3 {[%clk 0:03:01.5]} 8... a5
{[%clk 0:02:57]} 9. Rb1 {[%clk 0:03:02.5]} 9... Nbd7 {[%clk 0:02:56.3]} 10. a3
{[%clk 0:03:03.8]} 10... b6 {[%clk 0:02:52.3]} 11. b4 {[%clk 0:03:04.6]} 11...
dxc4 {[%clk 0:02:39.8]} 12. e4 {[%clk 0:03:02.7]} 12... fxe4 {[%clk 0:02:33.1]}
13. Nxe4 {[%clk 0:03:03.1]} 13... b5 {[%clk 0:02:34.6]} 14. Neg5 {[%clk
0:02:49.6]} 14... Nb8 {[%clk 0:02:21.7]} 15. Re1 {[%clk 0:02:48.1]} 15... h6
{[%clk 0:02:20.7]} 16. Nxe6 {[%clk 0:02:48]} 16... Bxe6 {[%clk 0:02:21.7]} 17.
Rxe6 {[%clk 0:02:49.5]} 17... axb4 {[%clk 0:02:22.8]} 18. axb4 {[%clk
0:02:49.9]} 18... Qd7 {[%clk 0:02:18.5]} 19. Bh3 {[%clk 0:02:28.3]} 19... Qb7
{[%clk 0:02:13.5]} 20. Qe2 {[%clk 0:02:18.6]} 20... Bd8 {[%clk 0:02:05.3]} 21.
Ne5 {[%clk 0:01:47.1]} 21... Nd5 {[%clk 0:02:01.6]} 22. Qg4 {[%clk 0:01:23.1]}
22... Nc3 {[%clk 0:01:25.8]} 23. Rb2 {[%clk 0:01:18.4]} 23... Ra1 {[%clk
0:01:24.9]} 24. Rc2 {[%clk 0:01:04.6]} 24... Na2 {[%clk 0:01:06.1]} 25. Rxa2
{[%clk 0:00:31.6]} 25... Rxc1+ {[%clk 0:01:03.5]} 26. Bf1 {[%clk 0:00:31.4]}
26... Na6 {[%clk 0:00:42.7]} 27. Rxh6 {[%clk 0:00:31.1]} 27... Rf6 {[%clk
0:00:13.2]} 28. Rxf6 {[%clk 0:00:24.7]} 28... Bxf6 {[%clk 0:00:13.7]} 29. Qe6+
{[%clk 0:00:23.6]} 29... Kh7 {[%clk 0:00:13.1]} 30. Qh3+ {[%clk 0:00:12.2]}
30... Kg8 {[%clk 0:00:13.9]} 31. Qe6+ {[%clk 0:00:12.9]} 31... Kh7 {[%clk
0:00:14.3]} 32. Ng4 {[%clk 0:00:12.2]} 32... Qe7 {[%clk 0:00:13.5]} 33. Nxf6+
{[%clk 0:00:12.7]} 33... Qxf6 {[%clk 0:00:14.2]} 34. Qxf6 {[%clk 0:00:13.9]}
34... gxf6 {[%clk 0:00:15.3]} 35. Rxa6 {[%clk 0:00:15.6]} 35... c3 {[%clk
0:00:16.3]} 36. Rxc6 {[%clk 0:00:16.7]} 36... c2 {[%clk 0:00:17.4]} 37. Kg2
{[%clk 0:00:18]} 37... Kg6 {[%clk 0:00:15.9]} 38. Bxb5 {[%clk 0:00:19]} 38...
Rb1 {[%clk 0:00:13.9]} 39. Bd3+ {[%clk 0:00:19.4]} 1-0

[Event "*** Titled Tuesday 3|2 Blitz (Early)"]
[Site "Chess.com"]
[Date "2017.01.03"]
[Round "2"]
[White "Holden-Caulfield"]
[Black "Anton_Demchenko"]
[Result "0-1"]
[WhiteElo "2452"]
[BlackElo "2638"]
[TimeControl "180+2"]
[EndTime "11:22:43 PST"]
[Termination "Anton_Demchenko won by resignation"]

1. d4 {[%clk 0:03:01.9]} 1... Nf6 {[%clk 0:03:00.4]} 2. Nf3 {[%clk 0:03:03]}
2... g6 {[%clk 0:03:01.7]} 3. Bf4 {[%clk 0:03:03.9]} 3... Bg7 {[%clk 0:03:02.4]}
4. e3 {[%clk 0:03:05]} 4... O-O {[%clk 0:03:02.7]} 5. Be2 {[%clk 0:03:05.7]}
5... d6 {[%clk 0:03:04]} 6. h3 {[%clk 0:03:06.9]} 6... b6 {[%clk 0:03:04.9]} 7.
c3 {[%clk 0:03:08.1]} 7... Bb7 {[%clk 0:03:06.2]} 8. O-O {[%clk 0:03:09.4]} 8...
Nbd7 {[%clk 0:03:06.9]} 9. Nbd2 {[%clk 0:03:10.6]} 9... Ne4 {[%clk 0:03:06.5]}
10. Bh2 {[%clk 0:03:11.6]} 10... e5 {[%clk 0:02:59.5]} 11. Nxe4 {[%clk
0:03:09.5]} 11... Bxe4 {[%clk 0:03:00.2]} 12. dxe5 {[%clk 0:03:10.8]} 12... dxe5
{[%clk 0:02:53.3]} 13. Nd2 {[%clk 0:03:10.8]} 13... Bb7 {[%clk 0:02:52.4]} 14.
Bf3 {[%clk 0:03:12.1]} 14... Qc8 {[%clk 0:02:47.8]} 15. Qc2 {[%clk 0:03:10.6]}
15... f5 {[%clk 0:02:26.7]} 16. Be2 {[%clk 0:03:10.1]} 16... Kh8 {[%clk
0:02:21.5]} 17. Rad1 {[%clk 0:03:10.2]} 17... Qe8 {[%clk 0:02:10.8]} 18. Rfe1
{[%clk 0:03:08.3]} 18... Qe7 {[%clk 0:02:11.4]} 19. Bf1 {[%clk 0:03:08.4]} 19...
Rad8 {[%clk 0:02:07.9]} 20. Nc4 {[%clk 0:03:09.3]} 20... a5 {[%clk 0:02:03.2]}
21. Kh1 {[%clk 0:03:02.1]} 21... Bf6 {[%clk 0:01:51.9]} 22. a3 {[%clk
0:02:57.1]} 22... Nc5 {[%clk 0:01:38.3]} 23. b4 {[%clk 0:02:51.9]} 23... Be4
{[%clk 0:01:38.6]} 24. Qc1 {[%clk 0:02:43.9]} 24... Nd3 {[%clk 0:01:36.5]} 25.
Bxd3 {[%clk 0:02:43.8]} 25... Bxd3 {[%clk 0:01:37.6]} 26. Nb2 {[%clk 0:02:45]}
26... Ba6 {[%clk 0:01:27.7]} 27. Qc2 {[%clk 0:02:44.7]} 27... Bb7 {[%clk
0:01:14.3]} 28. Nc4 {[%clk 0:02:40]} 28... axb4 {[%clk 0:01:12.8]} 29. axb4
{[%clk 0:02:39.9]} 29... Qe6 {[%clk 0:01:10]} 30. Nd2 {[%clk 0:02:38.6]} 30...
Kg7 {[%clk 0:01:06.6]} 31. Kg1 {[%clk 0:02:36.6]} 31... Rd7 {[%clk 0:01:02.9]}
32. Nf3 {[%clk 0:02:36.3]} 32... Rfd8 {[%clk 0:01:03.4]} 33. Rxd7+ {[%clk
0:02:36.4]} 33... Rxd7 {[%clk 0:01:05.3]} 34. Rd1 {[%clk 0:02:37.6]} 34... Rxd1+
{[%clk 0:01:03.9]} 35. Qxd1 {[%clk 0:02:38.7]} 35... g5 {[%clk 0:00:55.9]} 36.
Bg3 {[%clk 0:02:16.3]} 36... f4 {[%clk 0:00:52.3]} 37. Bh2 {[%clk 0:02:16.3]}
37... Qd5 {[%clk 0:00:48.2]} 38. Qxd5 {[%clk 0:02:16.8]} 38... Bxd5 {[%clk
0:00:50.1]} 39. Nd2 {[%clk 0:02:16.3]} 39... Kf7 {[%clk 0:00:44.9]} 40. e4
{[%clk 0:02:17.5]} 40... Be6 {[%clk 0:00:40.2]} 41. Kf1 {[%clk 0:02:18.2]} 41...
Be7 {[%clk 0:00:25.8]} 42. Ke2 {[%clk 0:02:18.3]} 42... c5 {[%clk 0:00:26.3]}
43. bxc5 {[%clk 0:02:15.1]} 43... Bxc5 {[%clk 0:00:27.5]} 44. f3 {[%clk
0:02:14.6]} 44... h5 {[%clk 0:00:27.8]} 45. Kf1 {[%clk 0:02:15.6]} 45... Be3
{[%clk 0:00:28.5]} 46. Ke2 {[%clk 0:02:15.1]} 46... b5 {[%clk 0:00:29]} 47. Kd3
{[%clk 0:02:15.4]} 47... Ke7 {[%clk 0:00:24.7]} 48. Ke2 {[%clk 0:02:11.2]} 48...
Kd6 {[%clk 0:00:25.5]} 49. Kd3 {[%clk 0:02:12.6]} 49... Kc5 {[%clk 0:00:25.4]}
50. Kc2 {[%clk 0:02:06]} 50... g4 {[%clk 0:00:19.5]} 51. hxg4 {[%clk 0:02:06.6]}
51... hxg4 {[%clk 0:00:21.4]} 52. fxg4 {[%clk 0:02:07.9]} 52... Bxg4 {[%clk
0:00:23.3]} 53. Kd3 {[%clk 0:02:07.4]} 53... Be6 {[%clk 0:00:22.2]} 54. Nf3
{[%clk 0:02:07.9]} 54... Bc4+ {[%clk 0:00:23.4]} 55. Kc2 {[%clk 0:02:08.8]}
55... Kd6 {[%clk 0:00:25.3]} 56. Nd2 {[%clk 0:02:03.7]} 56... Be2 {[%clk
0:00:24.3]} 57. Nf3 {[%clk 0:02:02]} 57... Bf1 {[%clk 0:00:24.3]} 58. Ne1 {[%clk
0:02:03.3]} 58... Ke6 {[%clk 0:00:24.1]} 59. Kd1 {[%clk 0:02:02.9]} 59... Bf2
{[%clk 0:00:21.6]} 60. Kd2 {[%clk 0:02:03]} 60... Bxe1+ {[%clk 0:00:21.8]} 61.
Kxe1 {[%clk 0:02:04.5]} 61... Bxg2 {[%clk 0:00:23.3]} 62. Bg1 {[%clk 0:02:06.1]}
62... Bxe4 {[%clk 0:00:24.3]} 63. Ke2 {[%clk 0:02:07.7]} 63... Kd5 {[%clk
0:00:24.5]} 0-1

[Event "*** Titled Tuesday 3|2 Blitz (Early)"]
[Site "Chess.com"]
[Date "2017.01.03"]
[Round "2"]
[White "hsskoo"]
[Black "Morpheus4"]
[Result "1-0"]
[WhiteElo "1917"]
[BlackElo "2009"]
[TimeControl "180+2"]
[EndTime "11:22:45 PST"]
[Termination "hsskoo won by checkmate"]

1. e4 {[%clk 0:02:54.7]} 1... c5 {[%clk 0:02:59.8]} 2. Nf3 {[%clk 0:02:53.4]}
2... d6 {[%clk 0:03:00.3]} 3. d4 {[%clk 0:02:53.8]} 3... cxd4 {[%clk 0:03:00.9]}
4. Nxd4 {[%clk 0:02:54.9]} 4... Nf6 {[%clk 0:03:01.9]} 5. Nc3 {[%clk 0:02:55]}
5... a6 {[%clk 0:03:02.5]} 6. Bg5 {[%clk 0:02:55]} 6... e6 {[%clk 0:03:03.2]} 7.
f4 {[%clk 0:02:55.3]} 7... Be7 {[%clk 0:03:01.5]} 8. Qf3 {[%clk 0:02:49.8]} 8...
Qc7 {[%clk 0:03:00.9]} 9. g4 {[%clk 0:02:45.9]} 9... Nbd7 {[%clk 0:02:58.3]} 10.
Bg2 {[%clk 0:02:44.4]} 10... Rb8 {[%clk 0:02:55.9]} 11. Bh4 {[%clk 0:02:39.2]}
11... Nc5 {[%clk 0:02:51.8]} 12. g5 {[%clk 0:02:36.1]} 12... Nfd7 {[%clk
0:02:51.8]} 13. f5 {[%clk 0:02:21.7]} 13... Ne5 {[%clk 0:02:50.7]} 14. Qe2
{[%clk 0:02:07.6]} 14... b5 {[%clk 0:02:43.5]} 15. O-O-O {[%clk 0:02:00.6]}
15... Qa5 {[%clk 0:02:27.1]} 16. Kb1 {[%clk 0:01:48.8]} 16... b4 {[%clk
0:02:10.3]} 17. Nd5 {[%clk 0:01:30.4]} 17... exd5 {[%clk 0:02:07.5]} 18. f6
{[%clk 0:01:26]} 18... gxf6 {[%clk 0:01:42.8]} 19. gxf6 {[%clk 0:01:23.6]} 19...
Bf8 {[%clk 0:01:39.6]} 20. exd5 {[%clk 0:01:21.2]} 20... Na4 {[%clk 0:01:30.2]}
21. Ka1 {[%clk 0:01:00.2]} 21... Bd7 {[%clk 0:01:09.4]} 22. Nc6 {[%clk
0:00:40.9]} 22... Bxc6 {[%clk 0:01:02.5]} 23. dxc6 {[%clk 0:00:37.6]} 23... Qc7
{[%clk 0:00:43.1]} 24. Bg3 {[%clk 0:00:36]} 24... Nb6 {[%clk 0:00:38]} 25. Bxe5
{[%clk 0:00:34.3]} 25... dxe5 {[%clk 0:00:38.5]} 26. Rhe1 {[%clk 0:00:24.3]}
26... Bd6 {[%clk 0:00:35.2]} 27. Qg4 {[%clk 0:00:24.3]} 27... Nc4 {[%clk
0:00:27]} 28. Qxc4 {[%clk 0:00:22.5]} 28... O-O {[%clk 0:00:22.4]} 29. Qg4+
{[%clk 0:00:14.4]} 29... Kh8 {[%clk 0:00:22.6]} 30. Qg7# {[%clk 0:00:10.4]} 1-0